bitfinex-derivatives/quotes_BTCF0:USTF0_20250127
["timestamp","ask_amount","ask_price","bid_price","bid_amount"]
[1737972768148,0.201648,99217.0,99214.0,0.201653]
[1737972768436,0.201648,99217.0,99215.0,0.24234202]
[1737972768743,0.201648,99217.0,99215.0,0.201651]
[1737972769445,0.203648,99217.0,99215.0,0.201651]
[1737972771043,0.002,99217.0,99211.0,0.3608]
[1737972771350,0.201668,99207.0,99197.0,0.24018067]
[1737972772541,0.201668,99207.0,99206.0,0.00115118]
[1737972774143,0.21179973,99207.0,99206.0,0.00115118]
[1737972775349,0.201668,99207.0,99206.0,0.00115118]
[1737972775947,0.203668,99207.0,99206.0,0.00015118]
[1737972777240,0.002,99207.0,99206.0,0.00015118]
[1737972777837,0.002,99207.0,99206.0,0.04143246]
[1737972779054,0.002,99207.0,99206.0,0.16287293]
[1737972780452,0.002,99207.0,99206.0,0.08527293]
[1737972781356,0.002,99207.0,99206.0,0.04143246]
[1737972781853,0.002,99207.0,99206.0,0.00015118]
[1737972782245,0.002,99207.0,99206.0,0.04161951]
[1737972783364,0.09052222,99219.0,99218.0,0.201646]
[1737972783657,0.09052222,99219.0,99218.0,0.562446]
[1737972784157,0.09052222,99219.0,99218.0,0.60428372]
[1737972784563,0.09052222,99219.0,99218.0,0.04183772]
[1737972784949,0.09052222,99219.0,99218.0,0.08545361]
[1737972785558,0.09052222,99219.0,99218.0,0.04283772]
[1737972785854,0.09052222,99219.0,99218.0,0.001]
[1737972786247,0.09052222,99219.0,99218.0,0.24349786]
[1737972789563,0.12075836,99219.0,99218.0,0.24349786]
[1737972790457,0.12075836,99219.0,99218.0,0.202646]
[1737972791266,0.51233325,99233.0,99218.0,0.202646]
[1737972791267,0.09132223,99233.0,99232.0,0.201617]
[1737972791463,0.15073324,99243.0,99242.0,0.201597]
[1737972791665,0.15073324,99243.0,99242.0,0.60570967]
[1737972793358,0.15673324,99243.0,99242.0,0.60670967]
[1737972793965,0.15973324,99243.0,99242.0,0.60670967]
[1737972794569,0.36132824,99243.0,99242.0,0.001]
[1737972796157,0.39892824,99243.0,99242.0,0.001]
[1737972796967,0.19733324,99243.0,99242.0,0.001]
[1737972797159,0.39892824,99243.0,99242.0,0.001]
[1737972797968,0.39883138,99243.0,99242.0,0.001]
[1737972799767,0.248195,99243.0,99242.0,0.001]
[1737972803874,0.009,99243.0,99242.0,0.202597]
[1737972804073,0.0366,99278.0,99242.0,0.3618]
[1737972804265,0.3608,99273.0,99261.0,0.12383187]
[1737972804575,0.3608,99273.0,99252.0,0.3608]
[1737972804576,0.201561,99260.0,99252.0,0.3608]
[1737972804766,0.0366,99259.0,99252.0,0.562376]
[1737972804967,0.0366,99259.0,99252.0,0.3608]
[1737972804968,0.00196833,99259.0,99252.0,0.3608]
[1737972805167,0.00196833,99259.0,99253.0,0.201574]
[1737972806071,0.20753133,99259.0,99256.0,0.00015118]
[1737972806565,0.20353133,99259.0,99256.0,0.00015118]
[1737972806878,0.20753133,99259.0,99256.0,0.00015118]
[1737972808273,0.20353133,99259.0,99256.0,0.00015118]
[1737972810466,0.201567,99257.0,99256.0,0.00015118]
[1737972811378,0.01221041,99259.0,99240.0,0.17962343]
[1737972811579,0.562399,99241.0,99240.0,0.17962343]
[1737972811772,0.201599,99241.0,99240.0,0.17962343]
[1737972811975,0.3608,99250.0,99240.0,0.17962343]
[1737972811976,0.0745,99249.0,99240.0,0.17962343]
[1737972812278,0.0745,99249.0,99246.0,0.201588]
[1737972812675,0.0745,99249.0,99240.0,0.38122443]
[1737972812979,0.201593,99244.0,99240.0,0.38122443]
[1737972813175,0.201593,99244.0,99242.0,0.201596]
[1737972813379,0.201603,99248.0,99242.0,0.201615]
[1737972813570,0.0745,99249.0,99240.0,0.17962343]
[1737972813772,0.3608,99241.0,99240.0,0.17962343]
[1737972814872,0.201621,99240.0,99238.0,0.00015118]
[1737972816579,0.202621,99240.0,99238.0,0.00015118]
[1737972817676,0.0378,99239.0,99238.0,0.00015118]
[1737972821979,0.201627,99238.0,99223.0,0.17962343]
[1737972822286,0.562454,99224.0,99223.0,0.17962343]
[1737972823286,0.562454,99224.0,99214.0,0.20182518]
[1737972823287,0.201666,99219.0,99214.0,0.20182518]
[1737972823673,0.3608,99224.0,99214.0,0.00015118]
[1737972823674,0.3608,99215.0,99214.0,0.00015118]
[1737972826390,0.3608,99215.0,99214.0,0.00115118]
[1737972830093,0.201701,99201.0,99200.0,0.1]
[1737972830982,0.201685,99209.0,99204.0,0.201695]
[1737972831391,0.00015118,99210.0,99205.0,0.0398]
[1737972832388,0.201689,99207.0,99205.0,0.0398]
[1737972832992,0.3608,99206.0,99205.0,0.0398]
[1737972833393,0.3608,99206.0,99205.0,0.0418]
[1737972833589,0.3608,99206.0,99205.0,0.0448]
[1737972834490,0.3608,99206.0,99205.0,0.1193]
[1737972835085,0.3608,99206.0,99205.0,0.1163]
[1737972835398,0.00015118,99210.0,99209.0,0.201684]
[1737972836896,0.00015118,99210.0,99209.0,0.202684]
[1737972837195,0.00015118,99210.0,99209.0,0.203684]
[1737972840395,0.3608,99225.0,99209.0,0.39559982]
[1737972840695,0.201659,99222.0,99219.0,0.201663]
[1737972841005,0.201673,99215.0,99212.0,0.201677]
[1737972841496,0.3608,99215.0,99209.0,0.00252]
[1737972841702,0.201682,99210.0,99209.0,0.002]
[1737972842105,0.201682,99210.0,99209.0,0.001]
[1737972842397,0.201682,99210.0,99209.0,0.03525453]
[1737972842799,0.201682,99210.0,99209.0,0.03625453]
[1737972843289,0.201682,99210.0,99209.0,0.002]
[1737972857509,0.12060655,99213.0,99200.0,0.1]
[1737972857709,0.3608,99201.0,99200.0,0.1]
[1737972857911,0.5625,99201.0,99200.0,0.1]
[1737972859022,0.5625,99201.0,99200.0,0.104]
[1737972859522,0.5625,99201.0,99200.0,0.101]
[1737972860019,0.57244575,99201.0,99200.0,0.101]
[1737972860614,0.57244575,99201.0,99200.0,0.103]
[1737972861317,0.72294688,99201.0,99200.0,0.101]
[1737972861616,0.72294688,99201.0,99200.0,0.102]
[1737972862123,0.71300113,99201.0,99200.0,0.102]
[1737972863115,0.201712,99196.0,99191.0,0.00015118]
[1737972863320,0.201715,99194.0,99191.0,0.00015118]
[1737972863721,0.201718,99193.0,99191.0,0.00015118]
[1737972864326,0.201718,99193.0,99191.0,0.00215118]
[1737972865222,0.201718,99193.0,99191.0,0.00415118]
[1737972865416,0.201718,99193.0,99191.0,0.00615118]
[1737972867425,0.201718,99193.0,99191.0,0.20787218]
[1737972868321,0.3608,99201.0,99199.0,0.201704]
[1737972868534,0.3608,99201.0,99200.0,0.0813165]
[1737972869925,0.3608,99201.0,99200.0,0.04]
[1737972870126,0.3608,99201.0,99200.0,0.041]
[1737972871422,0.3608,99201.0,99200.0,0.042]
[1737972871620,0.3608,99201.0,99200.0,0.002]
[1737972871815,0.201719,99192.0,99191.0,0.00015118]
[1737972872034,0.562519,99192.0,99191.0,0.00015118]
[1737972873228,0.562519,99192.0,99191.0,0.00415118]
[1737972873534,0.57260188,99192.0,99191.0,0.00415118]
[1737972874034,0.57260188,99192.0,99191.0,0.00615118]
[1737972874426,0.201774,99165.0,99162.0,0.2402261]
[1737972874635,0.201778,99163.0,99162.0,0.2402261]
[1737972875819,0.201778,99163.0,99162.0,0.2432261]
[1737972877327,0.201778,99163.0,99162.0,0.2442261]
[1737972878133,0.202778,99163.0,99162.0,0.2432261]
[1737972878531,0.202778,99163.0,99162.0,0.003]
[1737972878835,0.201794,99155.0,99154.0,0.0362]
[1737972879135,0.562594,99155.0,99154.0,0.0362]
[1737972879831,0.562594,99155.0,99153.0,0.00010126]
[1737972880334,0.563594,99155.0,99153.0,0.00010126]
[1737972881933,0.57375322,99155.0,99153.0,0.00010126]
[1737972882837,0.562594,99155.0,99153.0,0.00010126]
[1737972884237,0.3608,99155.0,99153.0,0.00010126]
[1737972885236,0.3608,99155.0,99154.0,0.201796]
[1737972885932,0.20178,99162.0,99156.0,0.20179]
[1737972886231,0.20178,99162.0,99153.0,0.01028463]
[1737972886436,0.001,99155.0,99154.0,0.201796]
[1737972887432,0.562574,99165.0,99160.0,0.201782]
[1737972887629,0.562574,99165.0,99161.0,0.24088]
[1737972888747,0.563574,99165.0,99161.0,0.24088]
[1737972888937,0.3618,99165.0,99161.0,0.24088]
[1737972889125,0.201779,99163.0,99161.0,0.24088]
[1737972889631,0.00456001,99165.0,99161.0,0.0391]
[1737972889826,0.004,99165.0,99163.0,0.201776]
[1737972890636,0.001,99165.0,99163.0,0.201776]
[1737972891538,0.001,99165.0,99164.0,0.201775]
[1737972892439,0.005,99165.0,99164.0,0.201775]
[1737972894132,0.12064106,99189.0,99164.0,0.35069561]
[1737972894441,0.12064106,99189.0,99188.0,0.201727]
[1737972895438,0.12364106,99189.0,99188.0,0.201727]
[1737972895640,0.13064106,99189.0,99188.0,0.202727]
[1737972896136,0.15104967,99198.0,99197.0,0.201709]
[1737972897247,0.20172,99192.0,99189.0,0.201723]
[1737972897441,0.36151127,99198.0,99188.0,0.01121036]
[1737972897653,0.201724,99190.0,99188.0,0.001]
[1737972898545,0.0373,99197.0,99186.0,0.00999029]
[1737972898744,0.0373,99197.0,99174.0,0.1115]
[1737972898946,0.201733,99185.0,99179.0,0.20189526]
[1737972899145,0.201743,99180.0,99179.0,0.00015126]
[1737972900551,0.36140001,99190.0,99179.0,0.00015126]
[1737972900847,0.201728,99188.0,99186.0,0.20173]
[1737972901043,0.3608,99190.0,99179.0,0.20189526]
[1737972901350,0.562543,99181.0,99179.0,0.00015126]
[1737972902149,0.0737,99180.0,99166.0,0.3608]
[1737972902446,0.20177,99167.0,99166.0,0.3608]
[1737972902842,0.18055501,99167.0,99166.0,0.3608]
[1737972903237,0.3608,99173.0,99162.0,0.01026929]
[1737972903438,0.201784,99160.0,99159.0,0.0002168]
[1737972903651,0.3608,99163.0,99157.0,0.00010126]
[1737972903839,0.201788,99158.0,99157.0,0.00010126]
[1737972904151,0.201832,99137.0,99127.0,0.201849]
[1737972904346,0.201832,99137.0,99121.0,0.0373]
[1737972904546,0.201832,99137.0,99125.0,0.201854]
[1737972904749,0.201833,99136.0,99134.0,0.30003111]
[1737972905349,0.36136001,99139.0,99134.0,0.50186611]
[1737972905551,0.3608,99139.0,99135.0,0.001]
[1737972905758,0.201832,99137.0,99135.0,0.001]
[1737972906547,0.3608,99139.0,99135.0,0.001]
[1737972907052,0.00015126,99145.0,99135.0,0.3618]
[1737972907353,0.00015126,99145.0,99143.0,0.201817]
[1737972907848,0.00015126,99145.0,99144.0,0.0356]
[1737972908152,0.00015126,99145.0,99144.0,0.0725]
[1737972908355,0.00015126,99145.0,99144.0,0.1113]
[1737972909153,0.00015126,99145.0,99144.0,0.0725]
[1737972909346,0.00015126,99145.0,99144.0,0.0356]
[1737972909953,0.00115126,99145.0,99144.0,0.0356]
[1737972910155,0.00115126,99145.0,99143.0,0.2118072]
[1737972911843,0.00015126,99145.0,99143.0,0.2118072]
[1737972916064,0.00015126,99145.0,99144.0,0.3608]
[1737972922264,0.201769,99168.0,99146.0,0.252263]
[1737972922458,0.20178,99162.0,99160.0,0.201783]
[1737972922854,0.201797,99154.0,99151.0,0.201801]
[1737972923053,0.201797,99154.0,99152.0,0.201799]
[1737972923460,0.3608,99164.0,99146.0,0.201812]
[1737972923461,0.201807,99149.0,99146.0,0.201812]
[1737972923660,0.3608,99155.0,99146.0,0.201812]
[1737972923859,0.201809,99148.0,99146.0,0.201812]
[1737972925363,0.0364,99154.0,99144.0,0.3608]
[1737972925558,0.201808,99149.0,99144.0,0.3608]
[1737972925757,0.0364,99154.0,99144.0,0.3608]
[1737972925758,0.201809,99148.0,99146.0,0.201812]
[1737972927263,0.201814,99145.0,99143.0,0.00015126]
[1737972929562,0.21206207,99145.0,99143.0,0.00015126]
[1737972930064,0.201836,99135.0,99129.0,0.201846]
[1737972930371,0.3608,99135.0,99129.0,0.201847]
[1737972930568,0.201839,99133.0,99129.0,0.201847]
[1737972930866,0.201839,99133.0,99130.0,0.201844]
[1737972931064,0.00015126,99141.0,99127.0,0.01021875]
[1737972931268,0.201829,99138.0,99132.0,0.201839]
[1737972931859,0.201829,99138.0,99133.0,0.201838]
[1737972932056,0.00015126,99141.0,99137.0,0.201829]
[1737972932262,0.20197426,99141.0,99137.0,0.20183]
[1737972932463,0.20197426,99141.0,99131.0,0.201843]
[1737972932669,0.00015126,99141.0,99132.0,0.003]
[1737972932873,0.201825,99140.0,99132.0,0.003]
[1737972933171,0.3608,99137.0,99132.0,0.003]
[1737972934167,0.201843,99131.0,99130.0,0.201844]
[1737972934866,0.201843,99131.0,99121.0,0.01025331]
[1737972934867,0.3608,99137.0,99121.0,0.01025331]
[1737972935068,0.562631,99137.0,99136.0,0.201833]
[1737972935467,0.00015126,99141.0,99132.0,0.002]
[1737972935764,0.00015126,99141.0,99140.0,0.201824]
[1737972937671,0.15089841,99149.0,99148.0,0.201808]
[1737972937975,0.18107809,99156.0,99155.0,0.201794]
[1737972939777,0.00015126,99165.0,99164.0,0.201776]
[1737972940169,0.21125777,99170.0,99169.0,0.201765]
[1737972940369,0.20168,99211.0,99176.0,0.201751]
[1737972940570,0.201678,99212.0,99205.0,0.201692]
[1737972941077,0.41312877,99212.0,99205.0,0.201692]
[1737972941263,0.41312877,99212.0,99196.0,0.12383187]
[1737972941264,0.201698,99203.0,99196.0,0.20171]
[1737972941468,0.21145077,99212.0,99199.0,0.00015126]
[1737972941469,0.32607146,99208.0,99199.0,0.00015126]
[1737972941870,0.3608,99200.0,99199.0,0.00015126]
[1737972942069,0.12383187,99190.0,99172.0,0.201759]
[1737972942273,0.201738,99183.0,99177.0,0.201749]
[1737972942779,0.3608,99181.0,99169.0,0.201765]
[1737972942972,0.201753,99176.0,99169.0,0.201765]
[1737972943869,0.201759,99173.0,99169.0,0.201765]
[1737972944182,0.3608,99181.0,99165.0,0.00015126]
[1737972944183,0.201771,99167.0,99165.0,0.00015126]
[1737972944476,0.0751,99166.0,99165.0,0.00015126]
[1737972945167,0.201753,99176.0,99165.0,0.00015126]
[1737972945368,0.201753,99176.0,99172.0,0.201758]
[1737972945570,0.0378,99179.0,99172.0,0.201758]
[1737972945765,0.0371,99180.0,99176.0,0.20175]
[1737972946475,0.0371,99180.0,99172.0,0.3608]
[1737972946476,0.439226,99189.0,99180.0,0.201743]
[1737972946676,0.23806001,99189.0,99180.0,0.201743]
[1737972946875,0.2375,99189.0,99180.0,0.201743]
[1737972947274,0.201732,99186.0,99180.0,0.201743]
[1737972948277,0.2375,99189.0,99172.0,0.562558]
[1737972948278,0.00115126,99185.0,99172.0,0.562558]
[1737972948479,0.20174,99182.0,99172.0,0.562558]
[1737972948680,0.20174,99182.0,99173.0,0.201756]
[1737972949375,0.20174,99182.0,99172.0,0.3608]
[1737972949572,0.20174,99182.0,99174.0,0.201754]
[1737972949774,0.20174,99182.0,99172.0,0.3608]
[1737972949974,0.20174,99182.0,99175.0,0.201752]
[1737972950280,0.20274,99182.0,99175.0,0.201752]
[1737972950478,0.20274,99182.0,99176.0,0.20175]
[1737972950979,0.20274,99182.0,99179.0,0.201744]
[1737972951978,0.20274,99182.0,99172.0,0.3608]
[1737972951979,0.20175,99177.0,99172.0,0.3608]
[1737972952781,0.20175,99177.0,99174.0,0.201755]
[1737972953979,0.20175,99177.0,99175.0,0.201752]
[1737972956671,0.201757,99173.0,99172.0,0.3608]
[1737972956876,0.201772,99166.0,99165.0,0.00015126]
[1737972958380,0.562572,99166.0,99165.0,0.00015126]
[1737972958683,0.201796,99154.0,99153.0,0.24054286]
[1737972958884,0.562596,99154.0,99153.0,0.24054286]
[1737972961774,0.201802,99152.0,99141.0,0.01035292]
[1737972962084,0.3618,99154.0,99149.0,0.3608]
[1737972962085,0.00152001,99154.0,99149.0,0.3608]
[1737972962388,0.001,99154.0,99152.0,0.201798]
[1737972963083,0.001,99154.0,99153.0,0.0365]
[1737972963981,0.001,99154.0,99153.0,0.0755]
[1737972964181,0.00015126,99163.0,99154.0,0.201796]
[1737972964486,0.20192926,99163.0,99159.0,0.201785]
[1737972965175,0.20192926,99163.0,99160.0,0.201782]
[1737972965383,0.20192926,99163.0,99153.0,0.0755]
[1737972965586,0.20192926,99163.0,99161.0,0.201781]
[1737972968991,0.00015126,99163.0,99153.0,0.0365]
[1737972969197,0.00015126,99163.0,99149.0,0.00064]
[1737972969198,0.201802,99151.0,99149.0,0.00064]
[1737972969392,0.1176,99150.0,99140.0,0.24054286]
[1737972969588,0.201817,99144.0,99140.0,0.24054286]
[1737972970292,0.201819,99143.0,99141.0,0.201822]
[1737972970492,0.201829,99138.0,99134.0,0.50186711]
[1737972970688,0.201829,99138.0,99134.0,0.30003111]
[1737972971588,0.201829,99138.0,99136.0,0.201832]
[1737972972896,0.201835,99135.0,99134.0,0.30403111]
[1737972973099,0.562635,99135.0,99134.0,0.30203111]
[1737972973406,0.201853,99126.0,99125.0,0.36003733]
[1737972973704,0.562653,99126.0,99125.0,0.36003733]
[1737972974209,0.201859,99123.0,99122.0,0.23970523]
[1737972975909,0.3,99123.0,99113.0,0.29963153]
[1737972976204,0.562677,99114.0,99113.0,0.29963153]
[1737972977000,0.201896,99105.0,99104.0,0.36003733]
[1737972977309,0.3608,99105.0,99100.0,0.1]
[1737972977502,0.201904,99101.0,99100.0,0.1]
[1737972978405,0.201904,99101.0,99100.0,0.105]
[1737972979105,0.201904,99101.0,99100.0,0.102]
[1737972979305,0.3608,99102.0,99086.0,0.17953921]
[1737972979606,0.3608,99088.0,99086.0,0.17953921]
[1737972980209,0.562731,99088.0,99086.0,0.17953921]
[1737972981009,0.562731,99088.0,99086.0,0.18553921]
[1737972981203,0.562731,99088.0,99086.0,0.18853921]
[1737972981402,0.562731,99088.0,99086.0,0.18253921]
[1737972981604,0.562731,99088.0,99086.0,0.18853921]
[1737972982805,0.3608,99087.0,99086.0,0.009]
[1737972982998,0.201935,99086.0,99074.0,0.201959]
[1737972983197,0.3608,99076.0,99074.0,0.201959]
[1737972983403,0.3608,99076.0,99038.0,0.3608]
[1737972983707,0.12383187,99048.0,99038.0,0.3608]
[1737972983902,0.12383187,99048.0,99038.0,0.56283]
[1737972984203,0.202019,99045.0,99038.0,0.3608]
[1737972984503,0.202019,99045.0,99031.0,0.112]
[1737972984711,0.202028,99040.0,99038.0,0.003]
[1737972985010,0.3608,99039.0,99038.0,0.009]
[1737972985418,0.3608,99039.0,99009.0,0.3608]
[1737972985601,0.56283,99039.0,99038.0,0.009]
[1737972986708,0.202093,99008.0,99000.0,0.1]
[1737972986913,0.562893,99008.0,99000.0,0.1]
[1737972988309,0.562893,99008.0,98976.0,0.3608]
[1737972988310,0.3608,99008.0,98981.0,0.202147]
[1737972988611,0.3608,98990.0,98981.0,0.202147]
[1737972989409,0.0001515,98995.0,98985.0,0.3608]
[1737972989711,0.36136001,99008.0,98993.0,0.3608]
[1737972989902,0.3608,99031.0,99004.0,0.3608]
[1737972990109,0.3608,99031.0,99022.0,0.202063]
[1737972990309,0.3608,99031.0,99023.0,0.202062]
[1737972991006,0.3608,99031.0,99017.0,0.0001515]
[1737972991207,0.3608,99031.0,99026.0,0.202056]
[1737972991610,0.53311847,99031.0,99023.0,0.001]
[1737972991807,0.53511847,99031.0,99023.0,0.001]
[1737972992208,0.53511847,99031.0,99017.0,0.0001515]
[1737972992512,0.53511847,99031.0,99022.0,0.202065]
[1737972992717,0.202056,99027.0,99017.0,0.0001515]
[1737972993014,0.202058,99026.0,99017.0,0.0001515]
[1737972993215,0.33307147,99031.0,99017.0,0.0001515]
[1737972993415,0.20206,99025.0,99017.0,0.0001515]
[1737972993614,0.33107147,99031.0,99017.0,0.0001515]
[1737972993615,0.202073,99019.0,99017.0,0.0001515]
[1737972994914,0.203073,99019.0,99017.0,0.0001515]
[1737972995110,0.001,99019.0,99017.0,0.0001515]
[1737972995612,0.32807147,99031.0,99021.0,0.202067]
[1737972995809,0.002,99031.0,99020.0,0.3608]
[1737972996008,0.002,99031.0,99030.0,0.3608]
[1737972996214,0.3608,99046.0,99042.0,0.202023]
[1737972996413,0.3608,99046.0,99044.0,0.202019]
[1737972996618,0.12035899,99049.0,99045.0,0.03622073]
[1737972997323,0.32236899,99049.0,99045.0,0.03622073]
[1737972997513,0.009,99046.0,99045.0,0.23823873]
[1737972998208,0.13335899,99049.0,99045.0,0.23923873]
[1737972998617,0.202015,99047.0,99045.0,0.03722073]
[1737972999023,0.16728647,99047.0,99045.0,0.03722073]
[1737972999323,0.16728647,99047.0,99045.0,0.001]
[1737972999521,0.16728647,99047.0,99038.0,0.36164]
[1737972999721,0.003,99046.0,99041.0,0.202025]
[1737972999922,0.012,99046.0,99045.0,0.001]
[1737973000716,0.009,99046.0,99045.0,0.001]
[1737973001118,0.009,99046.0,99038.0,0.3608]
[1737973001323,0.20203,99039.0,99038.0,0.3608]
[1737973001520,0.202019,99045.0,99043.0,0.202022]
[1737973001823,0.012,99047.0,99046.0,0.202016]
[1737973002027,0.0001515,99057.0,99056.0,0.201995]
[1737973002324,0.12035899,99065.0,99064.0,0.201979]
[1737973002513,0.12035899,99065.0,99064.0,0.562779]
[1737973003026,0.12035899,99065.0,99056.0,0.3608]
[1737973003326,0.201993,99057.0,99056.0,0.3608]
[1737973004019,0.1743598,99057.0,99056.0,0.3608]
[1737973004915,0.1773598,99057.0,99056.0,0.3618]
[1737973005226,0.1843598,99057.0,99056.0,0.3618]
[1737973005924,0.17126447,99057.0,99056.0,0.3608]
[1737973006623,0.16826447,99057.0,99056.0,0.3608]
[1737973008524,0.16726447,99057.0,99056.0,0.3608]
[1737973010528,0.12035899,99060.0,99058.0,0.20199]
[1737973010925,0.15076967,99067.0,99060.0,0.201987]
[1737973011227,0.15076967,99067.0,99066.0,0.3608]
[1737973011730,0.15076967,99067.0,99066.0,0.562775]
[1737973012030,0.15476967,99067.0,99066.0,0.562775]
[1737973012622,0.15076967,99067.0,99066.0,0.562775]
[1737973012823,0.15476967,99067.0,99066.0,0.562775]
[1737973013424,0.15676967,99067.0,99066.0,0.562775]
[1737973014331,0.006,99067.0,99066.0,0.562775]
[1737973015034,0.15076967,99085.0,99080.0,0.201945]
[1737973015035,0.35270667,99085.0,99080.0,0.201945]
[1737973015230,0.15076967,99085.0,99066.0,0.3616]
[1737973015429,0.201982,99063.0,99062.0,0.201981]
[1737973015623,0.201982,99063.0,99061.0,0.3608]
[1737973016436,0.201982,99063.0,99061.0,0.562784]
[1737973016825,0.201982,99063.0,99061.0,0.3608]
[1737973017334,0.202982,99063.0,99061.0,0.3608]
[1737973018733,0.203982,99063.0,99061.0,0.3608]
[1737973018920,0.0387,99062.0,99061.0,0.3608]
[1737973020325,0.0397,99062.0,99061.0,0.3608]
[1737973020529,0.002,99062.0,99061.0,0.3608]
[1737973021132,0.002,99062.0,99061.0,0.7216]
[1737973021329,0.00015142,99072.0,99071.0,0.201965]
[1737973021523,0.00015142,99072.0,99071.0,0.562765]
[1737973022125,0.00015142,99072.0,99071.0,0.3608]
[1737973022329,0.00015142,99072.0,99052.0,0.36183142]
[1737973022630,0.201968,99070.0,99069.0,0.201966]
[1737973022929,0.00215142,99072.0,99071.0,0.201965]
[1737973023135,0.00215142,99072.0,99071.0,0.562765]
[1737973023136,0.00715142,99072.0,99071.0,0.562765]
[1737973023530,0.00515142,99072.0,99071.0,0.562765]
[1737973023731,0.15076967,99079.0,99071.0,0.3608]
[1737973023933,0.15076967,99079.0,99078.0,0.56275]
[1737973025329,0.15376967,99079.0,99078.0,0.56375]
[1737973026240,0.003,99079.0,99078.0,0.56375]
[1737973027135,0.006,99079.0,99078.0,0.56375]
[1737973028533,0.00015142,99088.0,99087.0,0.201932]
[1737973028840,0.00015142,99088.0,99087.0,0.562732]
[1737973029336,0.201948,99079.0,99078.0,0.00195142]
[1737973029542,0.201948,99079.0,99078.0,0.00115142]
[1737973029841,0.201948,99079.0,99078.0,0.00015142]
[1737973030631,0.204948,99079.0,99078.0,0.00015142]
[1737973033736,0.201979,99064.0,99063.0,0.3608]
[1737973035237,0.201979,99064.0,99063.0,0.3608]
[1737973035442,0.201979,99064.0,99054.0,0.00015142]
[1737973035443,0.3608,99064.0,99054.0,0.00015142]
[1737973035654,0.201997,99055.0,99054.0,0.00015142]
[1737973037440,0.240297,99055.0,99054.0,0.00115142]
[1737973037649,0.0383,99055.0,99034.0,0.29927049]
[1737973037842,0.202038,99035.0,99034.0,0.29927049]
[1737973038651,0.0383,99055.0,99034.0,0.29927049]
[1737973038842,0.202023,99043.0,99034.0,0.29927049]
[1737973039044,0.202009,99050.0,99042.0,0.3608]
[1737973039443,0.20201,99049.0,99042.0,0.562823]
[1737973039641,0.04867148,99055.0,99042.0,0.3608]
[1737973039851,0.202021,99044.0,99042.0,0.3608]
[1737973041756,0.2122933,99044.0,99042.0,0.3608]
[1737973041951,0.2122933,99044.0,99043.0,0.00013882]
[1737973042254,0.202021,99044.0,99043.0,0.00013882]
[1737973042548,0.202006,99051.0,99043.0,0.00013882]
[1737973042754,0.0383,99055.0,99050.0,0.202006]
[1737973043142,0.04849949,99055.0,99054.0,0.3608]
[1737973043356,0.240297,99055.0,99054.0,0.3608]
[1737973043849,0.0383,99055.0,99054.0,0.3608]
[1737973044154,0.001,99055.0,99054.0,0.3608]
[1737973045158,0.16826846,99055.0,99054.0,0.3608]
[1737973045856,0.16926846,99055.0,99054.0,0.3608]
[1737973046255,0.20202,99044.0,99043.0,0.00013882]
[1737973047553,0.20202,99044.0,99043.0,0.00113882]
[1737973049058,0.20202,99044.0,99043.0,0.00013882]
[1737973049856,0.20202,99044.0,99043.0,0.00113882]
[1737973050648,0.20202,99044.0,99043.0,0.00013882]
[1737973051953,0.21239138,99044.0,99043.0,0.00013882]
[1737973052963,0.21239138,99044.0,99043.0,0.00113882]
[1737973053750,0.21239138,99044.0,99043.0,0.00013882]
[1737973055062,0.202056,99026.0,99018.0,0.18033883]
[1737973055955,0.202056,99026.0,99025.0,0.36095142]
[1737973058953,0.01035981,99035.0,99025.0,0.36095142]
[1737973059160,0.00015142,99035.0,99034.0,0.3608]
[1737973059863,0.202054,99027.0,99026.0,0.0771]
[1737973060066,0.202054,99027.0,99026.0,0.0389]
[1737973060564,0.202054,99027.0,99025.0,0.00015142]
[1737973061563,0.037,99026.0,99025.0,0.00015142]
[1737973069667,0.202054,99027.0,99025.0,0.00015142]
[1737973070069,0.202054,99027.0,99025.0,0.20220942]
[1737973070269,0.202054,99027.0,99026.0,0.038]
[1737973072682,0.3608,99031.0,99026.0,0.0754]
[1737973072981,0.00015142,99035.0,99034.0,0.20204]
[1737973073364,0.202052,99028.0,99027.0,0.0367]
[1737973073569,0.00015142,99035.0,99025.0,0.00015142]
[1737973073570,0.202056,99026.0,99025.0,0.00015142]
[1737973075581,0.19981493,99026.0,99025.0,0.00015142]
[1737973080576,0.12076631,99029.0,99027.0,0.202053]
[1737973080768,0.12076631,99029.0,99028.0,0.0373]
[1737973081179,0.202056,99026.0,99025.0,0.00015142]
[1737973082273,0.48216632,99033.0,99025.0,0.00015142]
[1737973082469,0.68360931,99033.0,99031.0,0.202045]
[1737973082675,0.12076631,99033.0,99031.0,0.562845]
[1737973082977,0.12076631,99033.0,99032.0,0.036]
[1737973083182,0.15076967,99039.0,99038.0,0.202032]
[1737973083583,0.15076967,99039.0,99031.0,0.37182849]
[1737973083768,0.15076967,99039.0,99031.0,0.562845]
[1737973083969,0.20204,99034.0,99032.0,0.202043]
[1737973084384,0.15076967,99039.0,99031.0,0.3626]
[1737973084585,0.15076967,99039.0,99037.0,0.202033]
[1737973085989,0.00015142,99043.0,99042.0,0.202024]
[1737973086181,0.00015142,99043.0,99042.0,0.562824]
[1737973086482,0.51156967,99067.0,99042.0,0.562824]
[1737973086483,0.201979,99064.0,99062.0,0.201982]
[1737973086678,0.51208968,99067.0,99055.0,0.201996]
[1737973086880,0.201982,99063.0,99055.0,0.201996]
[1737973087076,0.51208968,99067.0,99054.0,0.3608]
[1737973087283,0.201987,99061.0,99059.0,0.201989]
[1737973087474,0.201987,99061.0,99060.0,0.0394]
[1737973088383,0.15128968,99067.0,99064.0,0.201978]
[1737973088589,0.15076967,99067.0,99064.0,0.562778]
[1737973088885,0.239076,99066.0,99064.0,0.562778]
[1737973089788,0.0371,99066.0,99059.0,0.001]
[1737973090080,0.202013,99047.0,99046.0,0.1805621]